{"text_format":"1","workbook":"xlsx","n_sheets":14,"sheets":["Cover","Info","Results","E01","E02","E03","E04","E05","E06","E07","E08","E09","E10","About"],"not_rendered":{"charts":11,"images":39,"macros":1,"external_links":0,"defined_names":15,"comments":0,"pivot_tables":0},"unopened":[],"bounds":{"document_bytes":16777216,"sheet_cells":100000,"rows_first":2000,"rows_last":500,"rows_between":2000,"halvings":0,"cell_chars":16384,"cell_head_chars":4096},"cells_cut":0,"cells_raw":0,"read":"whole","date_system":"1900"}

{"sheet":"Cover","index":0,"n_rows":0,"n_cols":0,"rows_kept":0,"cut":false,"hidden":false,"merged":[]}

{"sheet":"Info","index":1,"n_rows":39,"n_cols":4,"rows_kept":39,"cut":false,"hidden":false,"merged":[[38,1,38,3],[39,1,39,3],[2,1,2,2],[3,1,3,2],[4,1,4,2],[5,1,5,2],[6,1,6,2],[37,1,37,3],[31,1,31,2],[32,1,32,2],[33,1,33,2],[34,1,34,2],[35,1,35,2]]}
[]
[]
[null,"Ця оцінка",null,"Відповідь"]
[null,"Назва міста"]
[null,"Тип міста (муніципалітет, агломерат тощо)"]
[null,"Країна"]
[null,"Дата оцінки"]
[]
[null,"Профіль міста (обов'язково)","Відповідь","Дата джерела"]
[null,"Посада вищого рівня влади (наприклад, мер тощо)"]
[null,"Загальна чисельність населення міста:   "]
[null,"Площа міста в кв.км.:"]
[null,"Щільність населення (на квадратний кілометр): "]
[null,"Молодь (15-24 роки) (%):"]
[null,"Літні люди (старші за 65 років) (%):"]
[null,"Стать (домогосподарства, очолювані жінками):"]
[null,"Рівень грамотності (% грамотного населення):"]
[null,"Рівень бідності (% населення, яке не живе в бідності):"]
[null,"Середній дохід домогосподарства (дол. США):"]
[null,"Мешканці, які не є громадянами США (%):"]
[null,"Найвірогідніший (ймовірний) ризик стихійного лиха з відомих: "]
[null,"Найсерйозніше стихійне лихо (з відомих): "]
[]
[null,"Профіль міста (необов'язково)","Відповідь","Дата джерела"]
[null,"Загальна кількість домогосподарств: "]
[null,"Осіб на одиницю:"]
[null,"Вартість життя (дол. США):"]
[null,"ВВП країни на душу населення (дол. США)"]
[null,"Коефіцієнт Джині:"]
[null,"Продукт міста на душу населення (дол. США):"]
[]
[null,"Команда зі зменшення ризиків стихійних лих та стійкості до них місцевого самоврядування",null,"Відповідь"]
[null,"Ім'я особи, яка веде/координує заповнення Форми оцінки:"]
[null,"Організація: "]
[null,"Контактні дані:"]
[null,"Бажання поділитися результатами або надати власний приклад/кейс для ЗРСЛ ООН та партнерів:"]
[]
[null,"Інформація про зацікавлені сторони"]
[null,"Нижче перелічіть усі зацікавлені сторони, які підтримали цю оцінку."]

{"sheet":"Results","index":2,"n_rows":221,"n_cols":13,"rows_kept":221,"cut":false,"hidden":false,"merged":[[158,1,158,3],[134,1,134,6],[136,2,136,5],[137,2,137,5],[138,2,138,5],[139,2,139,5],[140,2,140,5],[141,2,141,5],[142,2,142,5],[146,1,146,6],[148,2,148,5],[149,2,149,5],[111,2,111,5],[98,2,98,5],[94,1,94,6],[96,2,96,5],[97,2,97,5],[106,1,106,6],[108,2,108,5],[109,2,109,5],[110,2,110,5],[99,2,99,5],[100,2,100,5],[101,2,101,5],[89,2,89,5],[85,1,85,6],[74,2,74,5],[75,2,75,5],[76,2,76,5],[77,2,77,5],[87,2,87,5],[88,2,88,5],[51,2,51,5],[61,2,61,5],[62,2,62,5],[63,2,63,5],[64,2,64,5],[131,2,131,5],[35,2,35,5],[36,2,36,5],[37,2,37,5],[123,2,123,5],[124,2,124,5],[125,2,125,5],[47,2,47,5],[48,2,48,5],[49,2,49,5],[50,2,50,5],[126,2,126,5],[127,2,127,5],[128,2,128,5],[129,2,129,5],[130,2,130,5]]}
[]
[]
[]
[]
[]
[]
[]
[]
[]
[]
[]
[]
[]
[]
[]
[]
[]
[]
[]
[]
[]
[]
[]
[]
[]
[]
[]
[]
[]
[]
[]
[]
[]
[null,"Принцип 01: Організація заходів щодо підвищення стійкості до стихійних лих"]
[]
[null,{"$f":"C175","v":"P1.1"},{"$f":"E175","v":"Чи включає генеральний план міста (або відповідна стратегія/бачення розвитку) підходи до зниження ризику стихійних лих/катастроф відповідно до Сендайської рамкової програми та чи впроваджує їх?"},null,null,null,{"$f":"F175","v":0}]
[null,{"$f":"C176","v":"P1.2"},{"$f":"E176","v":"Чи існує міжвідомчий/міжгалузевий механізм з відповідними повноваженнями та ресурсами для вирішення питань зниженнзниження ризику стихійних лих?"},null,null,null,{"$f":"F176","v":0}]
[null,{"$f":"C177","v":"P1.3"},{"$f":"E177","v":"Чи належним чином інтегрована стійкість з іншими ключовими функціями/сферами діяльності міста? "},null,null,null,{"$f":"F177","v":0}]
[]
[]
[]
[]
[]
[]
[]
[null,"Принцип 02: Визначати, розуміти та використовувати поточні та майбутні сценарії ризиків"]
[]
[null,{"$f":"C178","v":"P2.1"},{"$f":"E178","v":"Чи знає керівництво міста про основні загрози, з якими стикається, та ймовірність їх виникнення?"},null,null,null,{"$f":"F178","v":0}]
[null,{"$f":"C179","v":"P2.2"},{"$f":"E179","v":"Чи існує спільне розуміння ризиків між керівництвом міста і різними постачальниками комунальних послуг та іншими регіональними і національними установами, які відіграють роль в управлінні інфраструктурою, такою як енергетика, водопостачання, дороги і залізниці, слабких місць і ризиків у масштабах міста?"},null,null,null,{"$f":"F179","v":0}]
[null,{"$f":"C180","v":"P2.3"},{"$f":"E180","v":"Чи існують узгоджені сценарії, що враховують вразливість міста Та ступінь наражання відповідно до  кожної небезпеки або групи загроз (див. вище)?"},null,null,null,{"$f":"F180","v":0}]
[null,{"$f":"C181","v":"P2.4"},{"$f":"E181","v":"Чи існує колективне розуміння потенційних каскадних збоїв між різними міськими та інфраструктурними системами за різних сценаріїв?"},null,null,null,{"$f":"F181","v":0}]
[null,{"$f":"C182","v":"P2.5"},{"$f":"E182","v":"Чи існують детальні карти небезпек та дані про ризики? Чи регулярно вони оновлюються?"},null,null,null,{"$f":"F182","v":0}]
[]
[]
[]
[]
[]
[]
[]
[null,"Принцип 03: Зміцнення фінансового потенціалу для забезпечення стійкості"]
[]
[null,{"$f":"C183","v":"P3.1"},{"$f":"E183","v":"Міська влада / провідні установи розуміють усі джерела фінансування та «дивіденди стійкості», мають налагоджену комунікацію, розуміють усі доступні шляхи залучення зовнішнього фінансування та активно шукають кошти для великих інвестицій у підвищення стійкості."},null,null,null,{"$f":"F183","v":0}]
[null,{"$f":"C184","v":"P3.2"},{"$f":"E184","v":"Чи має місто спеціальний «окремий» (захищений) бюджет, необхідні ресурси та механізми резервного фонду для зниження ризику стихійних лих на місцевому рівні (пом'якшення наслідків, запобігання, реагування та відновлення)?"},null,null,null,{"$f":"F184","v":0}]
[null,{"$f":"C185","v":"P3.3"},{"$f":"E185","v":"Який рівень страхового покриття в місті, по всіх секторах - бізнес та суспільство?"},null,null,null,{"$f":"F185","v":0}]
[null,{"$f":"C186","v":"P3.4"},{"$f":"E186","v":"Які стимули існують для різних секторів та сегментів бізнесу та суспільства для підтримки підвищення стійкості?"},null,null,null,{"$f":"F186","v":0}]
[]
[]
[]
[]
[]
[]
[]
[null,"Принцип 04: Сприяти сталому розвитку міста"]
[]
[null,{"$f":"C187","v":"P4.1"},{"$f":"E187","v":"Чи належним чином місто зоноване, враховуючи, наприклад, вплив ключових сценаріїв небезпек на економічну діяльність, сільськогосподарське виробництво та населені пункти?"},null,null,null,{"$f":"F187","v":0}]
[null,{"$f":"C188","v":"P4.2"},{"$f":"E188","v":"Чи популяризуються підходи, що сприяють підвищенню стійкості, шляхом проєктування та розробки нової міської забудови?"},null,null,null,{"$f":"F188","v":0}]
[null,{"$f":"C189","v":"P4.3"},{"$f":"E189","v":"Чи існують будівельні норми та стандарти, і чи враховують вони конкретні відомі небезпеки та ризики для міста? Чи регулярно вони оновлюються?"},null,null,null,{"$f":"F189","v":0}]
[null,{"$f":"C190","v":"P4.4"},{"$f":"E190","v":"Чи широко застосовуються, належним чином виконуються та перевіряються правила зонування, будівельні норми та стандарти?"},null,null,null,{"$f":"F190","v":0}]
[]
[]
[]
[]
[]
[]
[]
[null,"Принцип 05: Збереження природних зон для посилення захисних функцій природних екосистем"]
[]
[null,{"$f":"C191","v":"P5.1"},{"$f":"E191","v":"Чи розуміє керівництво міста які екосистемні функції здійснюють природні активи (природні екосистеми) на благо міста?"},null,null,null,{"$f":"F191","v":0}]
[null,{"$f":"C192","v":"P5.2"},{"$f":"E192","v":"Чи просувається зелена та синя інфраструктура у великих проєктах міської забудови та інфраструктурних проєктах за допомогою політики та забезпечення допоміжними методичними матеріалами?"},null,null,null,{"$f":"F192","v":0}]
[null,{"$f":"C193","v":"P5.3"},{"$f":"E193","v":"Чи знає міська влада про екосистемні послуги, які місто отримує від природних активів за межами , її адміністративних кордонів? Чи існують угоди з сусідніми адміністраціями для підтримки захисту та управління цими екосистемами?"},null,null,null,{"$f":"F193","v":0}]
[]
[]
[]
[]
[null,"Принцип 06: Зміцнення інституційної спроможності для забезпечення стійкості"]
[]
[null,{"$f":"C194","v":"P6.1"},{"$f":"E194","v":"Чи має мсцева влада вільний доступ до всіх спеціалістів, які, на їхню думку, можуть знадобитися для зниженнзниження ризиків та реагування на визначені сценарії стихійних лих?"},null,null,null,{"$f":"F194","v":0}]
[null,"P6.2","Чи проводиться скоординована кампанія з належного інформування громадськості про небезпеки, ризики та катастрофи у зрозумілій та доступній для застосування формі засобами масової інформації, органами освіта та ін.",null,null,null,0]
[null,"P6.3","В якому обсязі відбувається обмін даними з іншими організаціями, задіяними у зміцнення стійкості міста.",null,null,null,0]
[null,"P6.4","Чи існують навчальні курси, що охоплюють питання ризиків і стійкості, доступні для всіх секторів міста секторам міста, включаючи муніципальні організації, бізнес, НУО та населення?",null,null,null,0]
[null,"P6.5","Чи доступні навчальні матеріали більшістю мов, якими користуються в місті?",null,null,null,0]
[null,"P6.6","Наскільки активно прагне місто обмінюватися знаннями та вчитися в інших міст, які стикаються з подібними проблемами?",null,null,null,0]
[]
[]
[]
[]
[null,"Принцип 07:  Розуміння та зміцнення потенціалу суспільства для забезпечення стійкості"]
[]
[null,{"$f":"C200","v":"P7.1"},{"$f":"E200","v":"Чи беруть участь місцеві громадські організації у заходах зі зниження ризику небезпек та ліквідації наслідків дії надзвичайних ситуацій у кожному районі міста?"},null,null,null,{"$f":"F200","v":0}]
[null,{"$f":"C201","v":"P7.2"},{"$f":"E201","v":"Чи проводяться регулярні навчальні програми для найбільш вразливих та нужденних верств населення в місті?"},null,null,null,{"$f":"F201","v":0}]
[null,{"$f":"C202","v":"P7.3"},{"$f":"E202","v":"Яка частка підприємств має документально підтверджений план забезпечення безперервності діяльності, який переглядався протягом останніх 18 місяців?"},null,null,null,{"$f":"F202","v":0}]
[null,{"$f":"C203","v":"P7.4"},{"$f":"E203","v":"Наскільки ефективно міська влада взаємодіє з громадкістю у питаннях ЗРСЛ ?"},null,null,null,{"$f":"F203","v":0}]
[]
[]
[]
[]
[]
[]
[]
[]
[]
[null,"Принцип 08: Підвищення стійкості інфраструктури"]
[]
[null,{"$f":"C204","v":"P8.1"},{"$f":"E204","v":"Чи є стійкість критичної інфраструктури пріоритетом міста, чи має місто план або стратегію захисту критичної інфраструктури та чи впроваджує його?"},null,null,null,{"$f":"F204","v":0}]
[null,{"$f":"C205","v":"P8.2"},{"$f":"E205","v":"Чи добре розроблена та побудована наявна захисна інфраструктура з урахуванням інформації про ризики?"},null,null,null,{"$f":"F205","v":0}]
[null,"P8.3",{"$f":"E206","v":"Чи очікуються значні перебої з цими двома основними послугами для значної частини міста за узгодженими сценаріями стихійних лих?"},null,null,null,{"$f":"F206","v":0}]
[null,"P8.4",{"$f":"E207","v":"Чи очікуються значні перебої в послугах енергозабезпечення мешканцям значної частини міста в разі настання «найгіршого» сценарію? У разі збою коридори енергетичної інфраструктури залишаться безпечними для використання (тобто не матимуть ризику витоку, небезпеки ураження електричним струмом тощо)?"},null,null,null,0]
[null,"P8.5","Чи очікуються значні перебої в транспортних послугах мешканцям значної частини міста в разі настання «найгіршого» сценарію? У разі збою коридори транспортної інфраструктури залишаться безпечними для використання (тобто не матимуть ризику повеней, небезпеки ураження електричним струмом тощо) та вільними для проїзду?",null,null,null,0]
[null,"P8.6","Чи очікуються значні перебої в послугах комунікації мешканцям значної частини міста в разі настання «найгіршого» сценарію?",null,null,null,0]
[null,"P8.7","Чи має система охорони здоров'я достатньо можливостей для надання невідкладної медичної допомоги для лікування очікуваних значних травмза «найгіршого» сценарію?",null,null,null,0]
[null,"P8.8","Яка частка закладів системиосвіти під загрозою пошкодження за «найвірогіднішим» і «найгіршим» сценаріями?",null,null,null,0]
[null,{"$f":"C212","v":"P8.9"},"Чи буде в разі необхідності достатньо засобів реагування для швидкого реагування, включно із військовими або цивільними?",null,null,null,0]
[]
[]
[null,"Принцип 09: Забезпечення ефективного реагування на стихійні лиха"]
[]
[null,{"$f":"C213","v":"P9.1"},{"$f":"E213","v":"Чи є у міста план або стандартна операційна процедура щодо ранніх попереджень і прогнозів? Яка частина населення охоплюється системою раннього попередження?"},null,null,null,{"$f":"F213","v":0}]
[null,{"$f":"C214","v":"P9.2"},"Чи існує план попередження та реагування у випадку стихійних лих /план готовності/план реагування на надзвичайні ситуації, в якому вказано заходи щодо зниження наслідків, рівень готовності та засоби реагування на надзвичайні ситуації на місцевому рівні?",null,null,null,0]
[null,"P9.3","Чи має відповідальний орган з управління надзвичайними ситуаціями достатній кадровий потенціал для підтримки обов’язків служб ліквідації наслідків у наступу випадку різкого настання стихійного лиха?",null,null,null,0]
[null,"P9.4","Чи чітко визначено потреби в обладнанні та спорядженні, а також наявність обладнання?",null,null,null,0]
[null,"P9.5","Чи зможе місто продовжувати годувати й давати притулок населенню після наступу стихійного лихі?",null,null,null,0]
[null,"P9.6","Чи існує оперативний центр екстреного реагування за участю всіх установ, який автоматизує стандартні операційні процедури, спеціально розроблені для роботи за «найвірогіднішими» та «найгіршим» сценаріями?",null,null,null,0]
[null,"P9.7","Чи залучають до тренувань і громадськість, і професіоналів?",null,null,null,0]
[]
[]
[]
[null,"Принцип 10: Прискорене відновлення та принцип «Краще, ніж було»"]
[]
[null,{"$f":"C220","v":"P10.1"},{"$f":"E220","v":"Чи існує стратегія або розроблений процес для відновлення й реконструкції після стихійного лиха, включаючи перезавантаження економіки, соціальні аспекти тощо?"},null,null,null,{"$f":"F220","v":0}]
[null,{"$f":"C221","v":"P10.2"},{"$f":"E221","v":"Чи включають процеси оцінки, що проводяться після стихійного лиха, аналіз помилок/невдач і здатність виносити отримані уроки, які потім враховуються при розробці й виконанні проектів реконструкції?"},null,null,null,{"$f":"F221","v":0}]
[]
[]
[]
[]
[]
[]
[]
[]
[null,{"$f":"TODAY()","v":"2023-11-10"}]
[]
[]
[null,null,"Label","Name",null,"Essential","TotalScore","MaxScore","Label"]
[null,null,"S1","1.   Organise for Disaster Resilience",null,"E1",{"$f":"SUMIFS($F$175:$F$1154,$B$175:$B$1154,F163)","v":0},{"$f":"COUNTIFS($B$175:$B$221,F163)*3","v":9},"01",null,{"$f":"SUM(G163:G172)","v":0},{"$f":"K163/K164","v":0},{"$f":"CONCATENATE(\"Загальний бал для цієї оцінки становить \",SUM(G163:G172),\" / \",SUM(H163:H172))","v":"Загальний бал для цієї оцінки становить 0 / 141"}]
[null,null,"S2","2.   Identify, Understand and Use Current and Future Risk Scenarios",null,"E2",0,15,"02",null,{"$f":"SUM(H163:H172)","v":141},{"$f":"1-L163","v":1}]
[null,null,"S3","3.   Strengthen Financial Capacity for Resilience",null,"E3",0,12,"03"]
[null,null,"S4","4.   Pursue Resilient Urban Development and Design",null,"E4",0,12,"04"]
[null,null,"S5","5.   Safeguard Natural Buffers to Enhance Ecosystems’ Protective Functions",null,"E5",0,9,"05"]
[null,null,"S6","6.   Strengthen Institutional Capacity for Resilience",null,"E6",0,18,"06"]
[null,null,"S7","7.   Understand and Strengthen Societal Capacity for Resilience",null,"E7",0,12,"07"]
[null,null,"S8","8.   Increase Infrastructure Resilience",null,"E8",0,27,"08"]
[null,null,"S9","9.   Ensure Effective Disaster Response",null,"E9",0,21,"09"]
[null,null,"S10","10. Expedite Recovery and Build Back Better",null,"E10",0,6,"10"]
[]
[null,"Section","Ref",null,"Question","SelectedScore","ThisScore"]
[null,"E1","P1.1",null,"Чи включає генеральний план міста (або відповідна стратегія/бачення розвитку) підходи до зниження ризику стихійних лих/катастроф відповідно до Сендайської рамкової програми та чи впроваджує їх?",{"$f":"IF(G175=\"\",0,IF(G175=0,0,4-G175))","v":0},{"$f":"'E01'!$E$7","v":0}]
[null,"E1","P1.2",null,"Чи існує міжвідомчий/міжгалузевий механізм з відповідними повноваженнями та ресурсами для вирішення питань зниженнзниження ризику стихійних лих?",{"$f":"IF(G176=\"\",0,IF(G176=0,0,4-G176))","v":0},{"$f":"'E01'!$E$18","v":0}]
[null,"E1","P1.3",null,"Чи належним чином інтегрована стійкість з іншими ключовими функціями/сферами діяльності міста? ",0,{"$f":"'E01'!$E$29","v":0}]
[null,"E2","P2.1",null,"Чи знає керівництво міста про основні загрози, з якими стикається, та ймовірність їх виникнення?",0,{"$f":"'E02'!$E$7","v":0}]
[null,"E2","P2.2",null,"Чи існує спільне розуміння ризиків між керівництвом міста і різними постачальниками комунальних послуг та іншими регіональними і національними установами, які відіграють роль в управлінні інфраструктурою, такою як енергетика, водопостачання, дороги і залізниці, слабких місць і ризиків у масштабах міста?",0,{"$f":"'E02'!$E$18","v":0}]
[null,"E2","P2.3",null,"Чи існують узгоджені сценарії, що враховують вразливість міста Та ступінь наражання відповідно до  кожної небезпеки або групи загроз (див. вище)?",0,{"$f":"'E02'!$E$29","v":0}]
[null,"E2","P2.4",null,"Чи існує колективне розуміння потенційних каскадних збоїв між різними міськими та інфраструктурними системами за різних сценаріїв?",0,{"$f":"'E02'!$E$40","v":0}]
[null,"E2","P2.5",null,"Чи існують детальні карти небезпек та дані про ризики? Чи регулярно вони оновлюються?",0,{"$f":"'E02'!$E$51","v":0}]
[null,"E3","P3.1",null,"Міська влада / провідні установи розуміють усі джерела фінансування та «дивіденди стійкості», мають налагоджену комунікацію, розуміють усі доступні шляхи залучення зовнішнього фінансування та активно шукають кошти для великих інвестицій у підвищення стійкості.",0,{"$f":"'E03'!$E$7","v":0}]
[null,"E3","P3.2",null,"Чи має місто спеціальний «окремий» (захищений) бюджет, необхідні ресурси та механізми резервного фонду для зниження ризику стихійних лих на місцевому рівні (пом'якшення наслідків, запобігання, реагування та відновлення)?",0,{"$f":"'E03'!$E$18","v":0}]
[null,"E3","P3.3",null,"Який рівень страхового покриття в місті, по всіх секторах - бізнес та суспільство?",0,{"$f":"'E03'!$E$29","v":0}]
[null,"E3","P3.4",null,"Які стимули існують для різних секторів та сегментів бізнесу та суспільства для підтримки підвищення стійкості?",0,{"$f":"'E03'!$E$40","v":0}]
[null,"E4","P4.1",null,"Чи належним чином місто зоноване, враховуючи, наприклад, вплив ключових сценаріїв небезпек на економічну діяльність, сільськогосподарське виробництво та населені пункти?",0,{"$f":"'E04'!$E$7","v":0}]
[null,"E4","P4.2",null,"Чи популяризуються підходи, що сприяють підвищенню стійкості, шляхом проєктування та розробки нової міської забудови?",0,{"$f":"'E04'!$E$18","v":0}]
[null,"E4","P4.3",null,"Чи існують будівельні норми та стандарти, і чи враховують вони конкретні відомі небезпеки та ризики для міста? Чи регулярно вони оновлюються?",0,{"$f":"'E04'!$E$29","v":0}]
[null,"E4","P4.4",null,"Чи широко застосовуються, належним чином виконуються та перевіряються правила зонування, будівельні норми та стандарти?",0,{"$f":"'E04'!$E$40","v":0}]
[null,"E5","P5.1",null,"Чи розуміє керівництво міста які екосистемні функції здійснюють природні активи (природні екосистеми) на благо міста?",0,{"$f":"'E05'!$E$7","v":0}]
[null,"E5","P5.2",null,"Чи просувається зелена та синя інфраструктура у великих проєктах міської забудови та інфраструктурних проєктах за допомогою політики та забезпечення допоміжними методичними матеріалами?",0,{"$f":"'E05'!$E$18","v":0}]
[null,"E5","P5.3",null,"Чи знає міська влада про екосистемні послуги, які місто отримує від природних активів за межами , її адміністративних кордонів? Чи існують угоди з сусідніми адміністраціями для підтримки захисту та управління цими екосистемами?",0,{"$f":"'E05'!$E$29","v":0}]
[null,"E6","P6.1",null,"Чи має мсцева влада вільний доступ до всіх спеціалістів, які, на їхню думку, можуть знадобитися для зниженнзниження ризиків та реагування на визначені сценарії стихійних лих?",0,{"$f":"'E06'!$E$7","v":0}]
[null,"E6","P6.2",null,"Чи проводиться скоординована кампанія з належного інформування громадськості про небезпеки, ризики та катастрофи у зрозумілій та доступній для застосування формі засобами масової інформації, органами освіта та ін.",0,{"$f":"'E06'!$E$18","v":0}]
[null,"E6","P6.3",null,"В якому обсязі відбувається обмін даними з іншими організаціями, задіяними у зміцнення стійкості міста.",0,{"$f":"'E06'!$E$29","v":0}]
[null,"E6","P6.4",null,"Чи існують навчальні курси, що охоплюють питання ризиків і стійкості, доступні для всіх секторів міста секторам міста, включаючи муніципальні організації, бізнес, НУО та населення?",0,{"$f":"'E06'!$E$40","v":0}]
[null,"E6","P6.5",null,"Чи доступні навчальні матеріали більшістю мов, якими користуються в місті?",0,{"$f":"'E06'!$E$51","v":0}]
[null,"E6","P6.6",null,"Наскільки активно прагне місто обмінюватися знаннями та вчитися в інших міст, які стикаються з подібними проблемами?",0,{"$f":"'E06'!$E$62","v":0}]
[null,"E7","P7.1",null,"Чи беруть участь місцеві громадські організації у заходах зі зниження ризику небезпек та ліквідації наслідків дії надзвичайних ситуацій у кожному районі міста?",0,{"$f":"'E07'!$E$7","v":0}]
[null,"E7","P7.2",null,"Чи проводяться регулярні навчальні програми для найбільш вразливих та нужденних верств населення в місті?",0,{"$f":"'E07'!$E$18","v":0}]
[null,"E7","P7.3",null,"Яка частка підприємств має документально підтверджений план забезпечення безперервності діяльності, який переглядався протягом останніх 18 місяців?",0,{"$f":"'E07'!$E$29","v":0}]
[null,"E7","P7.4",null,"Наскільки ефективно міська влада взаємодіє з громадкістю у питаннях ЗРСЛ ?",0,{"$f":"'E07'!$E$40","v":0}]
[null,"E8","P8.1",null,"Чи є стійкість критичної інфраструктури пріоритетом міста, чи має місто план або стратегію захисту критичної інфраструктури та чи впроваджує його?",0,{"$f":"'E08'!E7","v":0}]
[null,"E8","P8.2",null,"Чи добре розроблена та побудована наявна захисна інфраструктура з урахуванням інформації про ризики?",0,{"$f":"'E08'!E18","v":0}]
[null,"E8","P8.3",null,"Чи очікуються значні перебої з цими двома основними послугами для значної частини міста за узгодженими сценаріями стихійних лих?",0,{"$f":"'E08'!E29","v":0}]
[null,"E8","P8.4",null,"Чи очікуються значні перебої в послугах енергозабезпечення мешканцям значної частини міста в разі настання «найгіршого» сценарію? У разі збою коридори енергетичної інфраструктури залишаться безпечними для використання (тобто не матимуть ризику витоку, небезпеки ураження електричним струмом тощо)?",0,{"$f":"'E08'!E40","v":0}]
[null,"E8","P8.5",null,"Чи очікуються значні перебої в транспортних послугах мешканцям значної частини міста в разі настання «найгіршого» сценарію? У разі збою коридори транспортної інфраструктури залишаться безпечними для використання (тобто не матимуть ризику повеней, небезпеки ураження електричним струмом тощо) та вільними для проїзду?",0,{"$f":"'E08'!E51","v":0}]
[null,"E8","P8.6",null,"Чи очікуються значні перебої в послугах комунікації мешканцям значної частини міста в разі настання «найгіршого» сценарію?",0,{"$f":"'E08'!E62","v":0}]
[null,"E8","P8.7",null,"Чи має система охорони здоров'я достатньо можливостей для надання невідкладної медичної допомоги для лікування очікуваних значних травмза «найгіршого» сценарію?",0,{"$f":"'E08'!E73","v":0}]
[null,"E8","P8.8",null,"Яка частка закладів системиосвіти під загрозою пошкодження за «найвірогіднішим» і «найгіршим» сценаріями?",0,{"$f":"'E08'!E84","v":0}]
[null,"E8","P8.9",null,"Чи буде в разі необхідності достатньо засобів реагування для швидкого реагування, включно із військовими або цивільними?",0,{"$f":"'E08'!E95","v":0}]
[null,"E9","P9.1",null,"Чи є у міста план або стандартна операційна процедура щодо ранніх попереджень і прогнозів? Яка частина населення охоплюється системою раннього попередження?",0,{"$f":"'E09'!$E$7","v":0}]
[null,"E9","P9.2",null,"Чи існує план попередження та реагування у випадку стихійних лих /план готовності/план реагування на надзвичайні ситуації, в якому вказано заходи щодо зниження наслідків, рівень готовності та засоби реагування на надзвичайні ситуації на місцевому рівні?",0,{"$f":"'E09'!$E$18","v":0}]
[null,"E9","P9.3",null,"Чи має відповідальний орган з управління надзвичайними ситуаціями достатній кадровий потенціал для підтримки обов’язків служб ліквідації наслідків у наступу випадку різкого настання стихійного лиха?",0,{"$f":"'E09'!$E$29","v":0}]
[null,"E9","P9.4",null,"Чи чітко визначено потреби в обладнанні та спорядженні, а також наявність обладнання?",0,{"$f":"'E09'!$E$40","v":0}]
[null,"E9","P9.5",null,"Чи зможе місто продовжувати годувати й давати притулок населенню після наступу стихійного лихі?",0,{"$f":"'E09'!$E$51","v":0}]
[null,"E9","P9.6",null,"Чи існує оперативний центр екстреного реагування за участю всіх установ, який автоматизує стандартні операційні процедури, спеціально розроблені для роботи за «найвірогіднішими» та «найгіршим» сценаріями?",0,{"$f":"'E09'!$E$62","v":0}]
[null,"E9","P9.7",null,"Чи залучають до тренувань і громадськість, і професіоналів?",0,{"$f":"'E09'!$E$73","v":0}]
[null,"E10","P10.1",null,"Чи існує стратегія або розроблений процес для відновлення й реконструкції після стихійного лиха, включаючи перезавантаження економіки, соціальні аспекти тощо?",0,{"$f":"'E10'!$E$7","v":0}]
[null,"E10","P10.2",null,"Чи включають процеси оцінки, що проводяться після стихійного лиха, аналіз помилок/невдач і здатність виносити отримані уроки, які потім враховуються при розробці й виконанні проектів реконструкції?",0,{"$f":"'E10'!$E$18","v":0}]

{"sheet":"E01","index":3,"n_rows":33,"n_cols":6,"rows_kept":33,"cut":false,"hidden":false,"merged":[[17,2,20,3],[25,2,25,3],[26,2,26,3],[27,2,27,3],[28,2,31,3],[16,2,16,3],[4,2,4,3],[3,2,3,3],[5,2,5,3],[6,2,9,3],[14,2,14,3],[15,2,15,3]]}
[]
[]
[null,"P1.1 - Розробка плану"]
[null,"Запитання","Коментарі"]
[]
[null,"Відповідь","Надайте засоби перевірки (пояснення й докази)"]
[null,null,null,null,null,{"$f":"IF(E7=1,TRUE,FALSE)","v":false}]
[null,null,null,null,null,{"$f":"IF(E7=2,TRUE,FALSE)","v":false}]
[null,null,null,null,null,{"$f":"IF(E7=3,TRUE,FALSE)","v":false}]
[null,null,null,null,null,{"$f":"IF(E7=4,TRUE,FALSE)","v":false}]
[null,"Дії для досягнення максимальної стійкості","Відповідальна установа","Часові рамки"]
[]
[]
[null,"P1.2 - Організація, координація та участь"]
[null,"Запитання","Коментарі"]
[]
[null,"Відповідь","Надайте засоби перевірки (пояснення й докази)"]
[null,null,null,null,null,{"$f":"IF(E18=1,TRUE,FALSE)","v":false}]
[null,null,null,null,null,{"$f":"IF(E18=2,TRUE,FALSE)","v":false}]
[null,null,null,null,null,{"$f":"IF(E18=3,TRUE,FALSE)","v":false}]
[null,null,null,null,null,{"$f":"IF(E18=4,TRUE,FALSE)","v":false}]
[null,"Дії для досягнення максимальної стійкості","Відповідальна установа","Часові рамки"]
[]
[]
[null,"P1.3 - Інтеграція"]
[null,"Запитання","Коментарі"]
[]
[null,"Відповідь","Надайте засоби перевірки (пояснення й докази)"]
[null,null,null,null,null,{"$f":"IF(E29=1,TRUE,FALSE)","v":false}]
[null,null,null,null,null,{"$f":"IF(E29=2,TRUE,FALSE)","v":false}]
[null,null,null,null,null,{"$f":"IF(E29=3,TRUE,FALSE)","v":false}]
[null,null,null,null,null,{"$f":"IF(E29=4,TRUE,FALSE)","v":false}]
[null,"Дії для досягнення максимальної стійкості","Відповідальна установа","Часові рамки"]

{"sheet":"E02","index":4,"n_rows":55,"n_cols":6,"rows_kept":55,"cut":false,"hidden":false,"merged":[[3,2,3,3],[4,2,4,3],[5,2,5,3],[6,2,9,3],[47,2,47,3],[48,2,48,3],[49,2,49,3],[50,2,53,3],[14,2,14,3],[15,2,15,3],[36,2,36,3],[37,2,37,3],[38,2,38,3],[39,2,42,3],[16,2,16,3],[17,2,20,3],[25,2,25,3],[26,2,26,3],[27,2,27,3],[28,2,31,3]]}
[]
[]
[null,"P2.1 - Оцінка небезпек"]
[null,"Запитання","Коментарі"]
[]
[null,"Відповідь","Надайте засоби перевірки (пояснення й докази)"]
[null,null,null,null,null,{"$f":"IF(E7=1,TRUE,FALSE)","v":false}]
[null,null,null,null,null,{"$f":"IF(E7=2,TRUE,FALSE)","v":false}]
[null,null,null,null,null,{"$f":"IF(E7=3,TRUE,FALSE)","v":false}]
[null,null,null,null,null,{"$f":"IF(E7=4,TRUE,FALSE)","v":false}]
[null,"Дії для досягнення максимальної стійкості","Відповідальна установа","Часові рамки"]
[]
[]
[null,"P2.2 - Спільне розуміння інфраструктурних ризиків"]
[null,"Запитання","Коментарі"]
[]
[null,"Відповідь","Надайте засоби перевірки (пояснення й докази)"]
[null,null,null,null,null,{"$f":"IF(E18=1,TRUE,FALSE)","v":false}]
[null,null,null,null,null,{"$f":"IF(E18=2,TRUE,FALSE)","v":false}]
[null,null,null,null,null,{"$f":"IF(E18=3,TRUE,FALSE)","v":false}]
[null,null,null,null,null,{"$f":"IF(E18=4,TRUE,FALSE)","v":false}]
[null,"Дії для досягнення максимальної стійкості","Відповідальна установа","Часові рамки"]
[]
[]
[null,"P2.3 - Обізнаність про ступінь наражання на небезпеку та вразливість"]
[null,"Запитання","Коментарі"]
[]
[null,"Відповідь","Надайте засоби перевірки (пояснення й докази)"]
[null,null,null,null,null,{"$f":"IF(E29=1,TRUE,FALSE)","v":false}]
[null,null,null,null,null,{"$f":"IF(E29=2,TRUE,FALSE)","v":false}]
[null,null,null,null,null,{"$f":"IF(E29=3,TRUE,FALSE)","v":false}]
[null,null,null,null,null,{"$f":"IF(E29=4,TRUE,FALSE)","v":false}]
[null,"Дії для досягнення максимальної стійкості","Відповідальна установа","Часові рамки"]
[]
[]
[null,"P2.4 - Каскадний вплив"]
[null,"Запитання","Коментарі"]
[]
[null,"Відповідь","Надайте засоби перевірки (пояснення й докази)"]
[null,null,null,null,null,{"$f":"IF(E40=1,TRUE,FALSE)","v":false}]
[null,null,null,null,null,{"$f":"IF(E40=2,TRUE,FALSE)","v":false}]
[null,null,null,null,null,{"$f":"IF(E40=3,TRUE,FALSE)","v":false}]
[null,null,null,null,null,{"$f":"IF(E40=4,TRUE,FALSE)","v":false}]
[null,"Дії для досягнення максимальної стійкості","Відповідальна установа","Часові рамки"]
[]
[]
[null,"P2.5 - Процес представлення та оновлення інформації про ризики"]
[null,"Запитання","Коментарі"]
[]
[null,"Відповідь","Надайте засоби перевірки (пояснення й докази)"]
[null,null,null,null,null,{"$f":"IF(E51=1,TRUE,FALSE)","v":false}]
[null,null,null,null,null,{"$f":"IF(E51=2,TRUE,FALSE)","v":false}]
[null,null,null,null,null,{"$f":"IF(E51=3,TRUE,FALSE)","v":false}]
[null,null,null,null,null,{"$f":"IF(E51=4,TRUE,FALSE)","v":false}]
[null,"Дії для досягнення максимальної стійкості","Відповідальна установа","Часові рамки"]

{"sheet":"E03","index":5,"n_rows":44,"n_cols":6,"rows_kept":44,"cut":false,"hidden":false,"merged":[[15,2,15,3],[3,2,3,3],[4,2,4,3],[5,2,5,3],[6,2,9,3],[14,2,14,3],[36,2,36,3],[37,2,37,3],[38,2,38,3],[39,2,42,3],[16,2,16,3],[17,2,20,3],[25,2,25,3],[26,2,26,3],[27,2,27,3],[28,2,31,3]]}
[]
[]
[null,"P3.1 - Обізнаність про підходи для залучення нових інвестицій в місто"]
[null,"Запитання","Коментарі"]
[]
[null,"Відповідь","Надайте засоби перевірки (пояснення й докази)"]
[null,null,null,null,null,{"$f":"IF(E7=1,TRUE,FALSE)","v":false}]
[null,null,null,null,null,{"$f":"IF(E7=2,TRUE,FALSE)","v":false}]
[null,null,null,null,null,{"$f":"IF(E7=3,TRUE,FALSE)","v":false}]
[null,null,null,null,null,{"$f":"IF(E7=4,TRUE,FALSE)","v":false}]
[null,"Дії для досягнення максимальної стійкості","Відповідальна установа","Часові рамки"]
[]
[]
[null,"P3.2 - Фінансовий план та бюджет для стійкості, включно з резервними фондами"]
[null,"Запитання","Коментарі"]
[]
[null,"Відповідь","Надайте засоби перевірки (пояснення й докази)"]
[null,null,null,null,null,{"$f":"IF(E18=1,TRUE,FALSE)","v":false}]
[null,null,null,null,null,{"$f":"IF(E18=2,TRUE,FALSE)","v":false}]
[null,null,null,null,null,{"$f":"IF(E18=3,TRUE,FALSE)","v":false}]
[null,null,null,null,null,{"$f":"IF(E18=4,TRUE,FALSE)","v":false}]
[null,"Дії для досягнення максимальної стійкості","Відповідальна установа","Часові рамки"]
[]
[]
[null,"P3.3 - Страховка"]
[null,"Запитання","Коментарі"]
[]
[null,"Відповідь","Надайте засоби перевірки (пояснення й докази)"]
[null,null,null,null,null,{"$f":"IF(E29=1,TRUE,FALSE)","v":false}]
[null,null,null,null,null,{"$f":"IF(E29=2,TRUE,FALSE)","v":false}]
[null,null,null,null,null,{"$f":"IF(E29=3,TRUE,FALSE)","v":false}]
[null,null,null,null,null,{"$f":"IF(E29=4,TRUE,FALSE)","v":false}]
[null,"Дії для досягнення максимальної стійкості","Відповідальна установа","Часові рамки"]
[]
[]
[null,"P3.4 - Стимули"]
[null,"Запитання","Коментарі"]
[]
[null,"Відповідь","Надайте засоби перевірки (пояснення й докази)"]
[null,null,null,null,null,{"$f":"IF(E40=1,TRUE,FALSE)","v":false}]
[null,null,null,null,null,{"$f":"IF(E40=2,TRUE,FALSE)","v":false}]
[null,null,null,null,null,{"$f":"IF(E40=3,TRUE,FALSE)","v":false}]
[null,null,null,null,null,{"$f":"IF(E40=4,TRUE,FALSE)","v":false}]
[null,"Дії для досягнення максимальної стійкості","Відповідальна установа","Часові рамки"]

{"sheet":"E04","index":6,"n_rows":44,"n_cols":6,"rows_kept":44,"cut":false,"hidden":false,"merged":[[15,2,15,3],[3,2,3,3],[4,2,4,3],[5,2,5,3],[6,2,9,3],[14,2,14,3],[36,2,36,3],[37,2,37,3],[38,2,38,3],[39,2,42,3],[16,2,16,3],[17,2,20,3],[25,2,25,3],[26,2,26,3],[27,2,27,3],[28,2,31,3]]}
[]
[]
[null,"P4.1 - Зональне землекористування "]
[null,"Запитання","Коментарі"]
[]
[null,"Відповідь","Надайте засоби перевірки (пояснення й докази)"]
[null,null,null,null,null,{"$f":"IF(E7=1,TRUE,FALSE)","v":false}]
[null,null,null,null,null,{"$f":"IF(E7=2,TRUE,FALSE)","v":false}]
[null,null,null,null,null,{"$f":"IF(E7=3,TRUE,FALSE)","v":false}]
[null,null,null,null,null,{"$f":"IF(E7=4,TRUE,FALSE)","v":false}]
[null,"Дії для досягнення максимальної стійкості","Відповідальна установа","Часові рамки"]
[]
[]
[null,"P4.2 - Нова міська забудова"]
[null,"Запитання","Коментарі"]
[]
[null,"Відповідь","Надайте засоби перевірки (пояснення й докази)"]
[null,null,null,null,null,{"$f":"IF(E18=1,TRUE,FALSE)","v":false}]
[null,null,null,null,null,{"$f":"IF(E18=2,TRUE,FALSE)","v":false}]
[null,null,null,null,null,{"$f":"IF(E18=3,TRUE,FALSE)","v":false}]
[null,null,null,null,null,{"$f":"IF(E18=4,TRUE,FALSE)","v":false}]
[null,"Дії для досягнення максимальної стійкості","Відповідальна установа","Часові рамки"]
[]
[]
[null,"P4.3 - Будівельні норми та стандарти"]
[null,"Запитання","Коментарі"]
[]
[null,"Відповідь","Надайте засоби перевірки (пояснення й докази)"]
[null,null,null,null,null,{"$f":"IF(E29=1,TRUE,FALSE)","v":false}]
[null,null,null,null,null,{"$f":"IF(E29=2,TRUE,FALSE)","v":false}]
[null,null,null,null,null,{"$f":"IF(E29=3,TRUE,FALSE)","v":false}]
[null,null,null,null,null,{"$f":"IF(E29=4,TRUE,FALSE)","v":false}]
[null,"Дії для досягнення максимальної стійкості","Відповідальна установа","Часові рамки"]
[]
[]
[null,"P4.4 - Застосування зонування, будівельних норм та стандартів"]
[null,"Запитання","Коментарі"]
[]
[null,"Відповідь","Надайте засоби перевірки (пояснення й докази)"]
[null,null,null,null,null,{"$f":"IF(E40=1,TRUE,FALSE)","v":false}]
[null,null,null,null,null,{"$f":"IF(E40=2,TRUE,FALSE)","v":false}]
[null,null,null,null,null,{"$f":"IF(E40=3,TRUE,FALSE)","v":false}]
[null,null,null,null,null,{"$f":"IF(E40=4,TRUE,FALSE)","v":false}]
[null,"Дії для досягнення максимальної стійкості","Відповідальна установа","Часові рамки"]

{"sheet":"E05","index":7,"n_rows":33,"n_cols":6,"rows_kept":33,"cut":false,"hidden":false,"merged":[[28,2,31,3],[3,2,3,3],[4,2,4,3],[5,2,5,3],[6,2,9,3],[14,2,14,3],[15,2,15,3],[16,2,16,3],[17,2,20,3],[25,2,25,3],[26,2,26,3],[27,2,27,3]]}
[]
[]
[null,"P5.1 - Обізнаність та розуміння екосистемних функцій/послуг"]
[null,"Запитання","Коментарі"]
[]
[null,"Відповідь","Надайте засоби перевірки (пояснення й докази)"]
[null,null,null,null,null,{"$f":"IF(E7=1,TRUE,FALSE)","v":false}]
[null,null,null,null,null,{"$f":"IF(E7=2,TRUE,FALSE)","v":false}]
[null,null,null,null,null,{"$f":"IF(E7=3,TRUE,FALSE)","v":false}]
[null,null,null,null,null,{"$f":"IF(E7=4,TRUE,FALSE)","v":false}]
[null,"Дії для досягнення максимальної стійкості","Відповідальна установа","Часові рамки"]
[]
[]
[null,"P5.2 - Інтеграція зеленої та синьої інфраструктури в міську політику та проєкти"]
[null,"Запитання","Коментарі"]
[]
[null,"Відповідь","Надайте засоби перевірки (пояснення й докази)"]
[null,null,null,null,null,{"$f":"IF(E18=1,TRUE,FALSE)","v":false}]
[null,null,null,null,null,{"$f":"IF(E18=2,TRUE,FALSE)","v":false}]
[null,null,null,null,null,{"$f":"IF(E18=3,TRUE,FALSE)","v":false}]
[null,null,null,null,null,{"$f":"IF(E18=4,TRUE,FALSE)","v":false}]
[null,"Дії для досягнення максимальної стійкості","Відповідальна установа","Часові рамки"]
[]
[]
[null,"P5.3 - Транскордонні екологічні проблеми"]
[null,"Запитання","Коментарі"]
[]
[null,"Відповідь","Надайте засоби перевірки (пояснення й докази)"]
[null,null,null,null,null,{"$f":"IF(E29=1,TRUE,FALSE)","v":false}]
[null,null,null,null,null,{"$f":"IF(E29=2,TRUE,FALSE)","v":false}]
[null,null,null,null,null,{"$f":"IF(E29=3,TRUE,FALSE)","v":false}]
[null,null,null,null,null,{"$f":"IF(E29=4,TRUE,FALSE)","v":false}]
[null,"Дії для досягнення максимальної стійкості","Відповідальна установа","Часові рамки"]

{"sheet":"E06","index":8,"n_rows":66,"n_cols":6,"rows_kept":66,"cut":false,"hidden":false,"merged":[[28,2,31,3],[3,2,3,3],[4,2,4,3],[5,2,5,3],[6,2,9,3],[14,2,14,3],[15,2,15,3],[16,2,16,3],[17,2,20,3],[25,2,25,3],[26,2,26,3],[27,2,27,3],[61,2,64,3],[36,2,36,3],[37,2,37,3],[38,2,38,3],[39,2,42,3],[47,2,47,3],[48,2,48,3],[49,2,49,3],[50,2,53,3],[58,2,58,3],[59,2,59,3],[60,2,60,3]]}
[]
[]
[null,"P6.1 - Навички та досвід"]
[null,"Запитання","Коментарі"]
[]
[null,"Відповідь","Надайте засоби перевірки (пояснення й докази)"]
[null,null,null,null,null,{"$f":"IF(E7=1,TRUE,FALSE)","v":false}]
[null,null,null,null,null,{"$f":"IF(E7=2,TRUE,FALSE)","v":false}]
[null,null,null,null,null,{"$f":"IF(E7=3,TRUE,FALSE)","v":false}]
[null,null,null,null,null,{"$f":"IF(E7=4,TRUE,FALSE)","v":false}]
[null,"Дії для досягнення максимальної стійкості","Відповідальна установа","Часові рамки"]
[]
[]
[null,"P6.2 - Просвітницька та інформаційна робота з громадськістю"]
[null,"Запитання","Коментарі"]
[]
[null,"Відповідь","Надайте засоби перевірки (пояснення й докази)"]
[null,null,null,null,null,{"$f":"IF(E18=1,TRUE,FALSE)","v":false}]
[null,null,null,null,null,{"$f":"IF(E18=2,TRUE,FALSE)","v":false}]
[null,null,null,null,null,{"$f":"IF(E18=3,TRUE,FALSE)","v":false}]
[null,null,null,null,null,{"$f":"IF(E18=4,TRUE,FALSE)","v":false}]
[null,"Дії для досягнення максимальної стійкості","Відповідальна установа","Часові рамки"]
[]
[]
[null,"P6.3 - Обмін даними"]
[null,"Запитання","Коментарі"]
[]
[null,"Відповідь","Надайте засоби перевірки (пояснення й докази)"]
[null,null,null,null,null,{"$f":"IF(E29=1,TRUE,FALSE)","v":false}]
[null,null,null,null,null,{"$f":"IF(E29=2,TRUE,FALSE)","v":false}]
[null,null,null,null,null,{"$f":"IF(E29=3,TRUE,FALSE)","v":false}]
[null,null,null,null,null,{"$f":"IF(E29=4,TRUE,FALSE)","v":false}]
[null,"Дії для досягнення максимальної стійкості","Відповідальна установа","Часові рамки"]
[]
[]
[null,"P6.4 - Проведення навчань"]
[null,"Запитання","Коментарі"]
[]
[null,"Відповідь","Надайте засоби перевірки (пояснення й докази)"]
[null,null,null,null,null,{"$f":"IF(E40=1,TRUE,FALSE)","v":false}]
[null,null,null,null,null,{"$f":"IF(E40=2,TRUE,FALSE)","v":false}]
[null,null,null,null,null,{"$f":"IF(E40=3,TRUE,FALSE)","v":false}]
[null,null,null,null,null,{"$f":"IF(E40=4,TRUE,FALSE)","v":false}]
[null,"Дії для досягнення максимальної стійкості","Відповідальна установа","Часові рамки"]
[]
[]
[null,"P6.5 - Мови"]
[null,"Запитання","Коментарі"]
[]
[null,"Відповідь","Надайте засоби перевірки (пояснення й докази)"]
[null,null,null,null,null,{"$f":"IF(E51=1,TRUE,FALSE)","v":false}]
[null,null,null,null,null,{"$f":"IF(E51=2,TRUE,FALSE)","v":false}]
[null,null,null,null,null,{"$f":"IF(E51=3,TRUE,FALSE)","v":false}]
[null,null,null,null,null,{"$f":"IF(E51=4,TRUE,FALSE)","v":false}]
[null,"Дії для досягнення максимальної стійкості","Відповідальна установа","Часові рамки"]
[]
[]
[null,"P6.6 - Обмін досвідом"]
[null,"Запитання","Коментарі"]
[]
[null,"Відповідь","Надайте засоби перевірки (пояснення й докази)"]
[null,null,null,null,null,{"$f":"IF(E62=1,TRUE,FALSE)","v":false}]
[null,null,null,null,null,{"$f":"IF(E62=2,TRUE,FALSE)","v":false}]
[null,null,null,null,null,{"$f":"IF(E62=3,TRUE,FALSE)","v":false}]
[null,null,null,null,null,{"$f":"IF(E62=4,TRUE,FALSE)","v":false}]
[null,"Дії для досягнення максимальної стійкості","Відповідальна установа","Часові рамки"]

{"sheet":"E07","index":9,"n_rows":44,"n_cols":6,"rows_kept":44,"cut":false,"hidden":false,"merged":[[15,2,15,3],[3,2,3,3],[4,2,4,3],[5,2,5,3],[6,2,9,3],[14,2,14,3],[36,2,36,3],[37,2,37,3],[38,2,38,3],[39,2,42,3],[16,2,16,3],[17,2,20,3],[25,2,25,3],[26,2,26,3],[27,2,27,3],[28,2,31,3]]}
[]
[]
[null,"P7.1 - Місцеві громадські організації / спільноти, мережі та навчання"]
[null,"Запитання","Коментарі"]
[]
[null,"Відповідь","Надайте засоби перевірки (пояснення й докази)"]
[null,null,null,null,null,{"$f":"IF(E7=1,TRUE,FALSE)","v":false}]
[null,null,null,null,null,{"$f":"IF(E7=2,TRUE,FALSE)","v":false}]
[null,null,null,null,null,{"$f":"IF(E7=3,TRUE,FALSE)","v":false}]
[null,null,null,null,null,{"$f":"IF(E7=4,TRUE,FALSE)","v":false}]
[null,"Дії для досягнення максимальної стійкості","Відповідальна установа","Часові рамки"]
[]
[]
[null,"P7.2 - Мережеві спільноти «Не залишати нікого осторонь»"]
[null,"Запитання","Коментарі"]
[]
[null,"Відповідь","Надайте засоби перевірки (пояснення й докази)"]
[null,null,null,null,null,{"$f":"IF(E18=1,TRUE,FALSE)","v":false}]
[null,null,null,null,null,{"$f":"IF(E18=2,TRUE,FALSE)","v":false}]
[null,null,null,null,null,{"$f":"IF(E18=3,TRUE,FALSE)","v":false}]
[null,null,null,null,null,{"$f":"IF(E18=4,TRUE,FALSE)","v":false}]
[null,"Дії для досягнення максимальної стійкості","Відповідальна установа","Часові рамки"]
[]
[]
[null,"P7.3 - Приватний сектор / роботодавці"]
[null,"Запитання","Коментарі"]
[]
[null,"Відповідь","Надайте засоби перевірки (пояснення й докази)"]
[null,null,null,null,null,{"$f":"IF(E29=1,TRUE,FALSE)","v":false}]
[null,null,null,null,null,{"$f":"IF(E29=2,TRUE,FALSE)","v":false}]
[null,null,null,null,null,{"$f":"IF(E29=3,TRUE,FALSE)","v":false}]
[null,null,null,null,null,{"$f":"IF(E29=4,TRUE,FALSE)","v":false}]
[null,"Дії для досягнення максимальної стійкості","Відповідальна установа","Часові рамки"]
[]
[]
[null,"P7.4 - Способи залучення громадян"]
[null,"Запитання","Коментарі"]
[]
[null,"Відповідь","Надайте засоби перевірки (пояснення й докази)"]
[null,null,null,null,null,{"$f":"IF(E40=1,TRUE,FALSE)","v":false}]
[null,null,null,null,null,{"$f":"IF(E40=2,TRUE,FALSE)","v":false}]
[null,null,null,null,null,{"$f":"IF(E40=3,TRUE,FALSE)","v":false}]
[null,null,null,null,null,{"$f":"IF(E40=4,TRUE,FALSE)","v":false}]
[null,"Дії для досягнення максимальної стійкості","Відповідальна установа","Часові рамки"]

{"sheet":"E08","index":10,"n_rows":99,"n_cols":6,"rows_kept":99,"cut":false,"hidden":false,"merged":[[69,2,69,3],[70,2,70,3],[71,2,71,3],[72,2,75,3],[28,2,31,3],[3,2,3,3],[4,2,4,3],[5,2,5,3],[6,2,9,3],[14,2,14,3],[15,2,15,3],[16,2,16,3],[17,2,20,3],[25,2,25,3],[26,2,26,3],[27,2,27,3],[61,2,64,3],[36,2,36,3],[37,2,37,3],[38,2,38,3],[39,2,42,3],[47,2,47,3],[48,2,48,3],[49,2,49,3],[50,2,53,3],[58,2,58,3],[59,2,59,3],[60,2,60,3],[94,2,97,3],[80,2,80,3],[81,2,81,3],[82,2,82,3],[83,2,86,3],[91,2,91,3],[92,2,92,3],[93,2,93,3]]}
[]
[]
[null,"P8.1 - Огляд критичної інфраструктури"]
[null,"Запитання","Коментарі"]
[]
[null,"Відповідь","Надайте засоби перевірки (пояснення й докази)"]
[null,null,null,null,null,{"$f":"IF(E7=1,TRUE,FALSE)","v":false}]
[null,null,null,null,null,{"$f":"IF(E7=2,TRUE,FALSE)","v":false}]
[null,null,null,null,null,{"$f":"IF(E7=3,TRUE,FALSE)","v":false}]
[null,null,null,null,null,{"$f":"IF(E7=4,TRUE,FALSE)","v":false}]
[null,"Дії для досягнення максимальної стійкості","Відповідальна установа","Часові рамки"]
[]
[]
[null,"P8.2 - Захисна інфраструктура"]
[null,"Запитання","Коментарі"]
[]
[null,"Відповідь","Надайте засоби перевірки (пояснення й докази)"]
[null,null,null,null,null,{"$f":"IF(E18=1,TRUE,FALSE)","v":false}]
[null,null,null,null,null,{"$f":"IF(E18=2,TRUE,FALSE)","v":false}]
[null,null,null,null,null,{"$f":"IF(E18=3,TRUE,FALSE)","v":false}]
[null,null,null,null,null,{"$f":"IF(E18=4,TRUE,FALSE)","v":false}]
[null,"Дії для досягнення максимальної стійкості","Відповідальна установа","Часові рамки"]
[]
[]
[null,"P8.3 - Вода — постачання питної води та каналізація"]
[null,"Запитання","Коментарі"]
[]
[null,"Відповідь","Надайте засоби перевірки (пояснення й докази)"]
[null,null,null,null,null,{"$f":"IF(E29=1,TRUE,FALSE)","v":false}]
[null,null,null,null,null,{"$f":"IF(E29=2,TRUE,FALSE)","v":false}]
[null,null,null,null,null,{"$f":"IF(E29=3,TRUE,FALSE)","v":false}]
[null,null,null,null,null,{"$f":"IF(E29=4,TRUE,FALSE)","v":false}]
[null,"Дії для досягнення максимальної стійкості","Відповідальна установа","Часові рамки"]
[]
[]
[null,"P8.4 - Енергетика "]
[null,"Запитання","Коментарі"]
[]
[null,"Відповідь","Надайте засоби перевірки (пояснення й докази)"]
[null,null,null,null,null,{"$f":"IF(E40=1,TRUE,FALSE)","v":false}]
[null,null,null,null,null,{"$f":"IF(E40=2,TRUE,FALSE)","v":false}]
[null,null,null,null,null,{"$f":"IF(E40=3,TRUE,FALSE)","v":false}]
[null,null,null,null,null,{"$f":"IF(E40=4,TRUE,FALSE)","v":false}]
[null,"Дії для досягнення максимальної стійкості","Відповідальна установа","Часові рамки"]
[]
[]
[null,"P8.5 - Транспорт"]
[null,"Запитання","Коментарі"]
[]
[null,"Відповідь","Надайте засоби перевірки (пояснення й докази)"]
[null,null,null,null,null,{"$f":"IF(E51=1,TRUE,FALSE)","v":false}]
[null,null,null,null,null,{"$f":"IF(E51=2,TRUE,FALSE)","v":false}]
[null,null,null,null,null,{"$f":"IF(E51=3,TRUE,FALSE)","v":false}]
[null,null,null,null,null,{"$f":"IF(E51=4,TRUE,FALSE)","v":false}]
[null,"Дії для досягнення максимальної стійкості","Відповідальна установа","Часові рамки"]
[]
[]
[null,"P8.6 - Системи комунікації"]
[null,"Запитання","Коментарі"]
[]
[null,"Відповідь","Надайте засоби перевірки (пояснення й докази)"]
[null,null,null,null,null,{"$f":"IF(E62=1,TRUE,FALSE)","v":false}]
[null,null,null,null,null,{"$f":"IF(E62=2,TRUE,FALSE)","v":false}]
[null,null,null,null,null,{"$f":"IF(E62=3,TRUE,FALSE)","v":false}]
[null,null,null,null,null,{"$f":"IF(E62=4,TRUE,FALSE)","v":false}]
[null,"Дії для досягнення максимальної стійкості","Відповідальна установа","Часові рамки"]
[]
[]
[null,"P8.7 - Система охорони здоров'я"]
[null,"Запитання","Коментарі"]
[]
[null,"Відповідь","Надайте засоби перевірки (пояснення й докази)"]
[null,null,null,null,null,{"$f":"IF(E73=1,TRUE,FALSE)","v":false}]
[null,null,null,null,null,{"$f":"IF(E73=2,TRUE,FALSE)","v":false}]
[null,null,null,null,null,{"$f":"IF(E73=3,TRUE,FALSE)","v":false}]
[null,null,null,null,null,{"$f":"IF(E73=4,TRUE,FALSE)","v":false}]
[null,"Дії для досягнення максимальної стійкості","Відповідальна установа","Часові рамки"]
[]
[]
[null,"P8.8 - Система освітніх закладів"]
[null,"Запитання","Коментарі"]
[]
[null,"Відповідь","Надайте засоби перевірки (пояснення й докази)"]
[null,null,null,null,null,{"$f":"IF(E84=1,TRUE,FALSE)","v":false}]
[null,null,null,null,null,{"$f":"IF(E84=2,TRUE,FALSE)","v":false}]
[null,null,null,null,null,{"$f":"IF(E84=3,TRUE,FALSE)","v":false}]
[null,null,null,null,null,{"$f":"IF(E84=4,TRUE,FALSE)","v":false}]
[null,"Дії для досягнення максимальної стійкості","Відповідальна установа","Часові рамки"]
[]
[]
[null,"P8.9 - Оснащення служб реагування"]
[null,"Запитання","Коментарі"]
[]
[null,"Відповідь","Надайте засоби перевірки (пояснення й докази)"]
[null,null,null,null,null,{"$f":"IF(E95=1,TRUE,FALSE)","v":false}]
[null,null,null,null,null,{"$f":"IF(E95=2,TRUE,FALSE)","v":false}]
[null,null,null,null,null,{"$f":"IF(E95=3,TRUE,FALSE)","v":false}]
[null,null,null,null,null,{"$f":"IF(E95=4,TRUE,FALSE)","v":false}]
[null,"Дії для досягнення максимальної стійкості","Відповідальна установа","Часові рамки"]

{"sheet":"E09","index":11,"n_rows":77,"n_cols":6,"rows_kept":77,"cut":false,"hidden":false,"merged":[[70,2,70,3],[71,2,71,3],[72,2,75,3],[58,2,58,3],[59,2,59,3],[60,2,60,3],[61,2,64,3],[69,2,69,3],[39,2,42,3],[47,2,47,3],[48,2,48,3],[49,2,49,3],[50,2,53,3],[27,2,27,3],[28,2,31,3],[36,2,36,3],[37,2,37,3],[38,2,38,3],[15,2,15,3],[16,2,16,3],[17,2,20,3],[25,2,25,3],[26,2,26,3],[3,2,3,3],[4,2,4,3],[5,2,5,3],[6,2,9,3],[14,2,14,3]]}
[]
[]
[null,"P9.1 - Раннє попередження"]
[null,"Запитання","Коментарі"]
[]
[null,"Відповідь","Надайте засоби перевірки (пояснення й докази)"]
[null,null,null,null,null,{"$f":"IF(E7=1,TRUE,FALSE)","v":false}]
[null,null,null,null,null,{"$f":"IF(E7=2,TRUE,FALSE)","v":false}]
[null,null,null,null,null,{"$f":"IF(E7=3,TRUE,FALSE)","v":false}]
[null,null,null,null,null,{"$f":"IF(E7=4,TRUE,FALSE)","v":false}]
[null,"Дії для досягнення максимальної стійкості","Відповідальна установа","Часові рамки"]
[]
[]
[null,"P9.2 - Плани організації заходів"]
[null,"Запитання","Коментарі"]
[]
[null,"Відповідь","Надайте засоби перевірки (пояснення й докази)"]
[null,null,null,null,null,{"$f":"IF(E18=1,TRUE,FALSE)","v":false}]
[null,null,null,null,null,{"$f":"IF(E18=2,TRUE,FALSE)","v":false}]
[null,null,null,null,null,{"$f":"IF(E18=3,TRUE,FALSE)","v":false}]
[null,null,null,null,null,{"$f":"IF(E18=4,TRUE,FALSE)","v":false}]
[null,"Дії для досягнення максимальної стійкості","Відповідальна установа","Часові рамки"]
[]
[]
[null,"P9.3 - Потреби в персоналі/службах ліквідації наслідків"]
[null,"Запитання","Коментарі"]
[]
[null,"Відповідь","Надайте засоби перевірки (пояснення й докази)"]
[null,null,null,null,null,{"$f":"IF(E29=1,TRUE,FALSE)","v":false}]
[null,null,null,null,null,{"$f":"IF(E29=2,TRUE,FALSE)","v":false}]
[null,null,null,null,null,{"$f":"IF(E29=3,TRUE,FALSE)","v":false}]
[null,null,null,null,null,{"$f":"IF(E29=4,TRUE,FALSE)","v":false}]
[null,"Дії для досягнення максимальної стійкості","Відповідальна установа","Часові рамки"]
[]
[]
[null,"P9.4 - Потреби в обладнанні та спорядженні для ліквідації наслідків"]
[null,"Запитання","Коментарі"]
[]
[null,"Відповідь","Надайте засоби перевірки (пояснення й докази)"]
[null,null,null,null,null,{"$f":"IF(E40=1,TRUE,FALSE)","v":false}]
[null,null,null,null,null,{"$f":"IF(E40=2,TRUE,FALSE)","v":false}]
[null,null,null,null,null,{"$f":"IF(E40=3,TRUE,FALSE)","v":false}]
[null,null,null,null,null,{"$f":"IF(E40=4,TRUE,FALSE)","v":false}]
[null,"Дії для досягнення максимальної стійкості","Відповідальна установа","Часові рамки"]
[]
[]
[null,"P9.5 - Постачання їжі, житла, товарів першої необхідності й палива"]
[null,"Запитання","Коментарі"]
[]
[null,"Відповідь","Надайте засоби перевірки (пояснення й докази)"]
[null,null,null,null,null,{"$f":"IF(E51=1,TRUE,FALSE)","v":false}]
[null,null,null,null,null,{"$f":"IF(E51=2,TRUE,FALSE)","v":false}]
[null,null,null,null,null,{"$f":"IF(E51=3,TRUE,FALSE)","v":false}]
[null,null,null,null,null,{"$f":"IF(E51=4,TRUE,FALSE)","v":false}]
[null,"Дії для досягнення максимальної стійкості","Відповідальна установа","Часові рамки"]
[]
[]
[null,"P9.6 - Взаємна узгодженість і міжвідомча робота"]
[null,"Запитання","Коментарі"]
[]
[null,"Відповідь","Надайте засоби перевірки (пояснення й докази)"]
[null,null,null,null,null,{"$f":"IF(E62=1,TRUE,FALSE)","v":false}]
[null,null,null,null,null,{"$f":"IF(E62=2,TRUE,FALSE)","v":false}]
[null,null,null,null,null,{"$f":"IF(E62=3,TRUE,FALSE)","v":false}]
[null,null,null,null,null,{"$f":"IF(E62=4,TRUE,FALSE)","v":false}]
[null,"Дії для досягнення максимальної стійкості","Відповідальна установа","Часові рамки"]
[]
[]
[null,"P9.7 - Навчальні тренування"]
[null,"Запитання","Коментарі"]
[]
[null,"Відповідь","Надайте засоби перевірки (пояснення й докази)"]
[null,null,null,null,null,{"$f":"IF(E73=1,TRUE,FALSE)","v":false}]
[null,null,null,null,null,{"$f":"IF(E73=2,TRUE,FALSE)","v":false}]
[null,null,null,null,null,{"$f":"IF(E73=3,TRUE,FALSE)","v":false}]
[null,null,null,null,null,{"$f":"IF(E73=4,TRUE,FALSE)","v":false}]
[null,"Дії для досягнення максимальної стійкості","Відповідальна установа","Часові рамки"]

{"sheet":"E10","index":12,"n_rows":22,"n_cols":6,"rows_kept":22,"cut":false,"hidden":false,"merged":[[15,2,15,3],[16,2,16,3],[17,2,20,3],[3,2,3,3],[4,2,4,3],[5,2,5,3],[6,2,9,3],[14,2,14,3]]}
[]
[]
[null,"P10.1 - Завчасне планування відновлення після стихійного лиха "]
[null,"Запитання","Коментарі"]
[]
[null,"Відповідь","Надайте засоби перевірки (пояснення й докази)"]
[null,null,null,null,null,{"$f":"IF(E7=1,TRUE,FALSE)","v":false}]
[null,null,null,null,null,{"$f":"IF(E7=2,TRUE,FALSE)","v":false}]
[null,null,null,null,null,{"$f":"IF(E7=3,TRUE,FALSE)","v":false}]
[null,null,null,null,null,{"$f":"IF(E7=4,TRUE,FALSE)","v":false}]
[null,"Дії для досягнення максимальної стійкості","Відповідальна установа","Часові рамки"]
[]
[]
[null,"P10.2 - Здобуті уроки/петлі навчання"]
[null,"Запитання","Коментарі"]
[]
[null,"Відповідь","Надайте засоби перевірки (пояснення й докази)"]
[null,null,null,null,null,{"$f":"IF(E18=1,TRUE,FALSE)","v":false}]
[null,null,null,null,null,{"$f":"IF(E18=2,TRUE,FALSE)","v":false}]
[null,null,null,null,null,{"$f":"IF(E18=3,TRUE,FALSE)","v":false}]
[null,null,null,null,null,{"$f":"IF(E18=4,TRUE,FALSE)","v":false}]
[null,"Дії для досягнення максимальної стійкості","Відповідальна установа","Часові рамки"]

{"sheet":"About","index":13,"n_rows":0,"n_cols":0,"rows_kept":0,"cut":false,"hidden":false,"merged":[]}